[Event "Balkan Youth Online-ch 2020"]
[Site "Online"]
[Date "2020.10.31"]
[Round "1.23"]
[White "Milovic, Ilija"]
[Black "Markosek, Bine"]
[Result "0-1"]
[ECO "C30"]
[WhiteElo "1044"]
[BlackElo "1287"]
[Annotator "NA RC"]
[PlyCount "108"]
[EventDate "2020.10.31"]
[EventType "swiss"]
[SourceTitle "playchess.com"]
[Source "ChessBase"]
[SourceQuality "1"]
[TimeControl "5400+30"]

1. e4 {[%emt 1:05:20]} e5 {[%emt 1:05:26]} 2. f4 {[%emt 0:00:32]} Bc5 {[%emt 0:00:27]} 3. Nf3 {[%emt 0:00:37]} d6 {[%emt 0:00:39]} 4. Nc3 {[%emt 0:00:48]} Nc6 {[%emt 0:00:30]} 5. Na4 {[%emt 0:00:57]} Bb6 {[%emt 0:00:47]} 6. Nxb6 {[%emt 0:00:30]} axb6 {[%emt 0:00:24]} 7. Bb5 {[%emt 0:00:28]} Bg4 {[%emt 0:00:41]} 8. O-O {[%emt 0:00:44]} Nge7 {[%emt 0:00:31]} 9. d4 {[%emt 0:00:47]} exd4 {[%emt 0:00:35]} 10. Qxd4 {[%emt 0:00:31]} O-O {[%emt 0:00:25]} 11. Qc3 {[%emt 0:00:39]} f5 {[%emt 0:03:01]} 12. e5 {[%emt 0:03:25]} dxe5 {[%emt 0:00:31]} 13. Nxe5 {[%emt 0:00:35]} Nxe5 {[%emt 0:00:49]} 14. Qxe5 {[%emt 0:01:03]} Qd6 {[%emt 0:01:19]} 15. Re1 {[%emt 0:02:22]} Nc6 {[%emt 0:02:46]} 16. Bc4+ {[%emt 0:00:55]} Kh8 {[%emt 0:00:26]} 17. Qxd6 {[%emt 0:01:50]} cxd6 {[%emt 0:00:26]} 18. h3 {[%emt 0:01:20]} Bh5 {[%emt 0:00:27]} 19. Bd5 {[%emt 0:01:27]} Nb4 {[%emt 0:01:57]} 20. Bb3 {[%emt 0:01:32]} Bf7 {[%emt 0:01:04]} 21. Bd2 {[%emt 0:02:24]} Bxb3 {[%emt 0:02:18]} 22. Bxb4 {[%emt 0:00:43]} Bxc2 {[%emt 0:00:34]} 23. Bxd6 {[%emt 0:00:40]} Rfd8 {[%emt 0:00:52]} 24. Rac1 {[%emt 0:00:47]} Be4 {[%emt 0:00:31]} 25. Be5 {[%emt 0:00:42]} Rd2 {[%emt 0:01:14]} 26. Rxe4 {[%emt 0:01:34]} fxe4 {[%emt 0:00:28]} 27. Rc7 {[%emt 0:00:26]} Rg8 {[%emt 0:00:32]} 28. Rxb7 {[%emt 0:00:38]} e3 {[%emt 0:00:25]} 29. Bc3 {[%emt 0:01:03]} Rd1+ {[%emt 0:00:26]} 30. Kh2 {[%emt 0:00:35]} h5 {[%emt 0:01:50]} 31. Re7 {[%emt 0:00:56]} Rd3 {[%emt 0:00:32]} 32. f5 {[%emt 0:00:43]} Kh7 {[%emt 0:04:02]} 33. f6 {[%emt 0:00:50]} Kg6 {[%emt 0:00:27]} 34. fxg7 {[%emt 0:01:30]} h4 {[%emt 0:01:50]} 35. Re4 {[%emt 0:01:40]} Kf5 {[%emt 0:01:07]} 36. Rxh4 {[%emt 0:01:53]} Rxc3 {[%emt 0:00:49]} 37. bxc3 {[%emt 0:01:02]} e2 {[%emt 0:00:24]} 38. Rh8 {[%emt 0:01:09]} e1=Q {[%emt 0:00:29]} 39. Rxg8 {[%emt 0:00:29]} Qe5+ {[%emt 0:00:25]} 40. Kg1 {[%emt 0:00:47]} Kg6 {[%emt 0:00:28]} 41. Rh8 {[%emt 0:00:48]} Kxg7 {[%emt 0:00:27]} 42. Rh4 {[%emt 0:00:34]} Qc5+ {[%emt 0:00:24]} 43. Kh2 {[%emt 0:00:40]} Qe5+ {[%emt 0:00:26]} 44. g3 {[%emt 0:00:41]} Qxc3 {[%emt 0:00:28]} 45. Rg4+ {[%emt 0:00:32]} Kf6 {[%emt 0:00:24]} 46. Rf4+ {[%emt 0:00:36]} Ke5 {[%emt 0:00:23]} 47. h4 {[%emt 0:00:31]} Qc2+ {[%emt 0:00:26]} 48. Kh3 {[%emt 0:00:27]} Qxa2 {[%emt 0:00:23]} 49. h5 {[%emt 0:00:30]} b5 {[%emt 0:00:35]} 50. h6 {[%emt 0:00:39]} Qe6+ {[%emt 0:00:24]} 51. Rg4 {[%emt 0:00:37]} Qxh6+ {[%emt 0:00:22]} 52. Rh4 {[%emt 0:00:26]} Qe6+ {[%emt 0:00:24]} 53. Rg4 {[%emt 0:00:30]} b4 {[%emt 0:00:23]} 54. Kh4 {[%emt 0:00:26]} Qh6# {[%emt 0:00:24]} 0-1

[Event "Balkan Youth Online-ch 2020"]
[Site "Online"]
[Date "2020.10.31"]
[Round "1.30"]
[White "Xheladini, Valton"]
[Black "Erdogan, Tekin Alp"]
[Result "0-1"]
[ECO "C42"]
[WhiteElo "1440"]
[BlackElo "1828"]
[Annotator "NA RC"]
[PlyCount "96"]
[EventDate "2020.10.31"]
[EventType "swiss"]
[SourceTitle "playchess.com"]
[Source "ChessBase"]
[SourceQuality "1"]
[TimeControl "5400+30"]

1. e4 {[%emt 1:05:20]} e5 {[%emt 1:05:25]} 2. Nf3 {[%emt 0:00:22]} Nf6 {[%emt 0:00:22]} 3. Nxe5 {[%emt 0:00:21]} d6 {[%emt 0:00:22]} 4. Nf3 {[%emt 0:00:22]} Nxe4 {[%emt 0:00:21]} 5. Nc3 {[%emt 0:00:26]} Nf6 {[%emt 0:00:34]} 6. Bc4 {[%emt 0:00:32] C42: Petroff Defence: 3 Nxe5 and unusual White 3rd moves.} Be7 {[%emt 0:00:38]} 7. O-O {[%emt 0:00:22]} O-O {[%emt 0:00:22]} 8. d4 {[%emt 0:01:36]} d5 {[%emt 0:00:44]} 9. Bb3 {[%emt 0:00:38]} c6 {[%emt 0:00:55] [#]} 10. h3 $146 {[%emt 0:01:00]} ({Predecessor:} 10. Re1 Ng4 11. h3 Nf6 12. Bf4 Bf5 13. Bg5 Nbd7 14. Ne5 h6 15. Bh4 c5 16. Nxd7 Bxd7 17. dxc5 {1-0 (27) Bolla,V (1782)-Nazzarri,E Rome 2011}) 10... h6 {[%emt 0:01:06]} 11. Re1 {[%emt 0:00:31]} Bd6 {[%emt 0:00:26]} 12. Be3 {[%emt 0:04:52]} Re8 {[%emt 0:01:27]} 13. Nd2 {[%emt 0:03:55]} Nbd7 {[%emt 0:01:07]} 14. Qf3 {[%emt 0:01:30]} Nf8 {[%emt 0:01:58]} 15. Bf4 {[%emt 0:01:56]} Rxe1+ {[%emt 0:01:08]} 16. Rxe1 {[%emt 0:00:25]} Ng6 {[%emt 0:00:22]} 17. Bxd6 {[%emt 0:02:58]} Qxd6 {[%emt 0:00:25]} 18. Ne2 {[%emt 0:00:23]} Bd7 {[%emt 0:02:01]} 19. Ng3 {[%emt 0:01:18]} Nh4 {[%emt 0:02:46]} 20. Qd3 {[%emt 0:01:14]} Qf4 {[%emt 0:01:24]} 21. c3 {[%emt 0:02:00]} Bxh3 {[%emt 0:07:21]} 22. gxh3 {[%emt 0:02:06]} Qxd2 {[%emt 0:00:46]} 23. Qxd2 {[%emt 0:01:28]} Nf3+ {[%emt 0:00:23]} 24. Kg2 {[%emt 0:00:22]} Nxd2 {[%emt 0:00:21]} 25. Bc2 {[%emt 0:00:25]} Nc4 {[%emt 0:00:31]} 26. b3 {[%emt 0:00:36]} Nd6 {[%emt 0:00:29]} 27. f3 $17 {[%emt 0:01:22]} g6 {[%emt 0:00:46]} 28. Kf2 {[%emt 0:02:40]} Kf8 {[%emt 0:01:04]} 29. Nf1 {[%emt 0:00:53]} Nh5 {[%emt 0:00:55]} 30. Ne3 {[%emt 0:00:50]} Re8 {[%emt 0:01:24]} 31. Ng4 {[%emt 0:01:10]} Nb5 {[%emt 0:01:10]} 32. Rxe8+ {[%emt 0:01:26]} Kxe8 {[%emt 0:00:23]} 33. Ke3 {[%emt 0:00:25]} Nxc3 {[%emt 0:00:47]} 34. a4 {[%emt 0:00:29]} Na2 {[%emt 0:00:56]} 35. Ne5 {[%emt 0:00:35]} Nb4 {[%emt 0:00:37]} 36. Bb1 {[%emt 0:00:33]} Ke7 {[%emt 0:00:24]} 37. Nd3 {[%emt 0:00:41]} Nxd3 {[%emt 0:00:25]} 38. Bxd3 {[%emt 0:00:35]} Ke6 {[%emt 0:00:36]} 39. b4 {[%emt 0:00:33]} g5 {[%emt 0:00:29]} 40. b5 {[%emt 0:00:35]} Nf4 {[%emt 0:00:32]} 41. Bf1 {[%emt 0:00:21]} Kd6 {[%emt 0:00:28]} 42. h4 {[%emt 0:00:22]} c5 {[%emt 0:00:38]} 43. hxg5 {[%emt 0:00:46]} hxg5 {[%emt 0:00:23]} 44. a5 {[%emt 0:00:21]} c4 {[%emt 0:00:29]} 45. Kd2 {[%emt 0:00:36]} a6 {[%emt 0:00:32]} 46. b6 {[%emt 0:00:36]} Kc6 {[%emt 0:00:24]} 47. Kc3 {[%emt 0:00:23]} Kb5 {[%emt 0:00:25]} 48. Bxc4+ {[%emt 0:00:32]} dxc4 {[%emt 0:00:21]} 0-1

[Event "Balkan Youth Online-ch 2020"]
[Site "Online"]
[Date "2020.10.31"]
[Round "1.33"]
[White "Zlatkov, Anton"]
[Black "Dafa, Sirio"]
[Result "1-0"]
[ECO "C56"]
[WhiteElo "2032"]
[BlackElo "1004"]
[Annotator "RC"]
[PlyCount "48"]
[EventDate "2020.10.31"]
[EventType "swiss"]
[SourceTitle "playchess.com"]
[Source "ChessBase"]
[SourceQuality "1"]
[TimeControl "5400+30"]

1. e4 {[%emt 1:05:20]} e5 {[%emt 1:05:25]} 2. Nf3 {[%emt 0:00:26]} Nc6 {[%emt 0:00:24]} 3. d4 {[%emt 0:00:23]} exd4 {[%emt 0:00:26]} 4. Bc4 {[%emt 0:00:22]} Nf6 {[%emt 0:00:26]} 5. e5 {[%emt 0:00:22]} d5 {[%emt 0:00:22]} 6. Bb5 {[%emt 0:00:22]} Ne4 {[%emt 0:01:26]} 7. Nxd4 {[%emt 0:00:24]} Bd7 {[%emt 0:00:22]} 8. Bxc6 {[%emt 0:00:23]} bxc6 {[%emt 0:00:26]} 9. O-O {[%emt 0:00:34]} Bc5 {[%emt 0:00:26]} 10. f3 {[%emt 0:00:24]} Ng5 {[%emt 0:00:22]} 11. Be3 {[%emt 0:00:23]} O-O {[%emt 0:03:04]} 12. f4 {[%emt 0:00:23]} Ne4 {[%emt 0:00:23]} 13. Nc3 {[%emt 0:00:23]} Bxd4 {[%emt 0:02:22]} 14. Bxd4 {[%emt 0:01:13]} Nxc3 {[%emt 0:00:26]} 15. bxc3 {[%emt 0:01:10]} Qe7 {[%emt 0:02:17]} 16. f5 {[%emt 0:00:42]} Rfe8 {[%emt 0:04:57]} 17. Qd2 {[%emt 0:03:29]} f6 {[%emt 0:04:46]} 18. e6 {[%emt 0:00:26]} Bc8 {[%emt 0:00:28]} 19. Qe3 {[%emt 0:00:49]} Qd6 {[%emt 0:00:55]} 20. Rae1 {[%emt 0:00:52]} Ba6 {[%emt 0:01:47]} 21. Rf3 {[%emt 0:00:31]} Rab8 {[%emt 0:01:32]} 22. Rg3 {[%emt 0:01:55]} Kh8 {[%emt 0:01:18]} 23. Rg4 {[%emt 0:00:48]} c5 {[%emt 0:01:40]} 24. Qh6 {[%emt 0:02:41]} Qc6 {[%emt 0:01:33]} 1-0

[Event "Balkan Youth Online-ch 2020"]
[Site "Online"]
[Date "2020.10.31"]
[Round "1.38"]
[White "Papidakis, Georgios"]
[Black "Kilic, Gokturk Kagan"]
[Result "1-0"]
[ECO "E73"]
[WhiteElo "2135"]
[BlackElo "2084"]
[Annotator "RC"]
[PlyCount "93"]
[EventDate "2020.10.31"]
[EventType "swiss"]
[SourceTitle "playchess.com"]
[Source "ChessBase"]
[SourceQuality "1"]
[TimeControl "5400+30"]

1. d4 {[%emt 1:05:20]} Nf6 {[%emt 1:05:27]} 2. c4 {[%emt 0:00:23]} g6 {[%emt 0:01:00]} 3. Nc3 {[%emt 0:00:23]} Bg7 {[%emt 0:00:23]} 4. e4 {[%emt 0:00:23]} d6 {[%emt 0:00:22]} 5. Be2 {[%emt 0:00:22]} Nbd7 {[%emt 0:00:22]} 6. Be3 {[%emt 0:04:40]} e5 {[%emt 0:00:34]} 7. d5 {[%emt 0:00:25]} O-O {[%emt 0:00:24]} 8. Qd2 {[%emt 0:02:15]} Nc5 {[%emt 0:05:10]} 9. f3 {[%emt 0:00:25]} a5 {[%emt 0:00:23]} 10. h4 {[%emt 0:05:35]} Nh5 {[%emt 0:07:28]} 11. O-O-O {[%emt 0:06:03]} f5 {[%emt 0:04:05]} 12. exf5 {[%emt 0:07:25]} gxf5 {[%emt 0:05:26]} 13. Bg5 {[%emt 0:01:35]} Qe8 {[%emt 0:01:02]} 14. Nb5 {[%emt 0:01:24]} Qf7 {[%emt 0:00:53]} 15. Be3 {[%emt 0:00:39]} b6 {[%emt 0:01:15]} 16. Nh3 {[%emt 0:00:24]} f4 {[%emt 0:01:07]} 17. Bf2 {[%emt 0:00:21]} h6 {[%emt 0:01:14]} 18. Nc3 {[%emt 0:00:28]} Bf5 {[%emt 0:00:25]} 19. Bxc5 {[%emt 0:00:36]} bxc5 {[%emt 0:00:33]} 20. Bd3 {[%emt 0:00:22]} Ng3 {[%emt 0:00:22]} 21. Rh2 {[%emt 0:00:38]} a4 {[%emt 0:01:28]} 22. Nf2 {[%emt 0:00:27]} a3 {[%emt 0:00:27]} 23. b3 {[%emt 0:00:29]} Qg6 {[%emt 0:00:56]} 24. Nfe4 {[%emt 0:00:38]} Rfb8 {[%emt 0:00:35]} 25. Nxg3 {[%emt 0:00:35]} fxg3 {[%emt 0:00:49]} 26. Bxf5 {[%emt 0:00:27]} Qxf5 {[%emt 0:00:24]} 27. Rh3 {[%emt 0:00:21]} e4 {[%emt 0:00:35]} 28. Nxe4 {[%emt 0:00:35]} Qe5 {[%emt 0:00:24]} 29. Qc2 {[%emt 0:00:33]} Qa1+ {[%emt 0:00:39]} 30. Kd2 {[%emt 0:00:21]} Qd4+ {[%emt 0:00:22]} 31. Kc1 {[%emt 0:00:25]} Qb2+ {[%emt 0:00:29]} 32. Kd2 {[%emt 0:00:26]} Qe5 {[%emt 0:00:36]} 33. Rxg3 {[%emt 0:00:27]} Kh8 {[%emt 0:00:22]} 34. Re1 {[%emt 0:00:47]} Re8 {[%emt 0:00:31]} 35. Rg4 {[%emt 0:00:30]} h5 {[%emt 0:00:31]} 36. Rg6 {[%emt 0:00:39]} Qf4+ {[%emt 0:00:32]} 37. Kd1 {[%emt 0:00:24]} Qxh4 {[%emt 0:00:27]} 38. Qd2 {[%emt 0:00:37]} Re5 {[%emt 0:00:36]} 39. g3 {[%emt 0:00:30]} Qh3 {[%emt 0:00:32]} 40. Ng5 {[%emt 0:00:31]} Rxe1+ {[%emt 0:00:36]} 41. Qxe1 {[%emt 0:00:24]} Qf5 {[%emt 0:00:22]} 42. Qe4 {[%emt 0:00:26]} Qxe4 {[%emt 0:00:27]} 43. Nxe4 {[%emt 0:00:24]} Rb8 {[%emt 0:00:24]} 44. Kc2 {[%emt 0:00:24]} Kh7 {[%emt 0:00:22]} 45. Re6 {[%emt 0:00:23]} Rf8 {[%emt 0:00:27]} 46. Re7 {[%emt 0:00:22]} Rxf3 {[%emt 0:00:22]} 47. Ng5+ {[%emt 0:00:21]} 1-0

[Event "Balkan Youth Online-ch 2020"]
[Site "Online"]
[Date "2020.10.31"]
[Round "1.54"]
[White "Bagas, Ana"]
[Black "Aldea, Maria-Antonia"]
[Result "1/2-1/2"]
[ECO "B40"]
[WhiteElo "1589"]
[BlackElo "1181"]
[Annotator "NA RC"]
[PlyCount "117"]
[EventDate "2020.10.31"]
[EventType "swiss"]
[SourceTitle "playchess.com"]
[Source "ChessBase"]
[SourceQuality "1"]
[TimeControl "5400+30"]

1. e4 {[%emt 1:05:20]} c5 {[%emt 1:05:25]} 2. Nf3 {[%emt 0:00:26]} e6 {[%emt 0:00:26]} 3. c3 {[%emt 0:00:25]} Nc6 {[%emt 0:00:48]} 4. Bd3 {[%emt 0:00:30]} d6 {[%emt 0:01:43]} 5. Bc2 {[%emt 0:00:28]} g6 {[%emt 0:01:36]} 6. d3 {[%emt 0:01:07]} Bg7 {[%emt 0:00:50]} 7. Bg5 {[%emt 0:01:08]} Nge7 {[%emt 0:00:57]} 8. Nbd2 {[%emt 0:00:33]} O-O {[%emt 0:01:26]} 9. h4 {[%emt 0:00:38]} h5 {[%emt 0:03:52]} 10. Nf1 {[%emt 0:00:58]} d5 {[%emt 0:02:08]} 11. Ng3 {[%emt 0:02:09]} b6 {[%emt 0:02:27]} 12. Qd2 {[%emt 0:00:50]} Bb7 {[%emt 0:00:30]} 13. Bh6 {[%emt 0:01:24]} Rc8 {[%emt 0:03:16]} 14. Bxg7 {[%emt 0:00:37]} Kxg7 {[%emt 0:00:24]} 15. Qg5 {[%emt 0:01:49]} Rh8 {[%emt 0:01:43]} 16. O-O-O {[%emt 0:08:41]} d4 {[%emt 0:04:26]} 17. e5 {[%emt 0:03:04]} Nd5 {[%emt 0:01:15]} 18. c4 {[%emt 0:01:53]} Qxg5+ {[%emt 0:00:57]} 19. Nxg5 {[%emt 0:01:11]} Nde7 {[%emt 0:01:44]} 20. N3e4 {[%emt 0:00:45]} Nf5 {[%emt 0:00:39]} 21. g3 {[%emt 0:01:23]} Nxe5 {[%emt 0:00:51]} 22. f4 {[%emt 0:00:47]} Ng4 {[%emt 0:00:31]} 23. Rhe1 {[%emt 0:01:01]} Nge3 {[%emt 0:00:44]} 24. Rd2 {[%emt 0:00:27]} Rhd8 {[%emt 0:00:34]} 25. Rg1 {[%emt 0:00:32]} a6 {[%emt 0:00:37]} 26. a3 {[%emt 0:00:32]} b5 {[%emt 0:00:24]} 27. cxb5 {[%emt 0:00:28]} axb5 {[%emt 0:00:23]} 28. Bb3 {[%emt 0:01:03]} c4 {[%emt 0:00:36]} 29. dxc4 {[%emt 0:00:33]} Nxc4 {[%emt 0:00:57]} 30. Bxc4 {[%emt 0:01:06]} Rxc4+ {[%emt 0:00:26]} 31. Rc2 {[%emt 0:00:31]} Rxc2+ {[%emt 0:00:23]} 32. Kxc2 {[%emt 0:00:22]} Rc8+ {[%emt 0:00:21]} 33. Kd3 {[%emt 0:00:29]} Bxe4+ {[%emt 0:01:01]} 34. Nxe4 {[%emt 0:00:29]} Rd8 {[%emt 0:00:38]} 35. Nc5 {[%emt 0:00:41]} Rd5 {[%emt 0:00:43]} 36. b4 {[%emt 0:00:26]} Ne3 {[%emt 0:00:38]} 37. Rc1 {[%emt 0:00:36]} Nf5 {[%emt 0:00:37]} 38. Ne4 {[%emt 0:00:35]} Ne3 {[%emt 0:00:56]} 39. Rc5 {[%emt 0:00:35]} Nf5 {[%emt 0:00:32]} 40. Rxd5 {[%emt 0:00:29]} exd5 {[%emt 0:00:23]} 41. Nc5 {[%emt 0:00:29]} Kf6 {[%emt 0:00:35]} 42. a4 {[%emt 0:00:30]} bxa4 {[%emt 0:00:30]} 43. Nxa4 {[%emt 0:00:23]} Ke6 {[%emt 0:00:31]} 44. Nc5+ {[%emt 0:00:34]} Kd6 {[%emt 0:00:24]} 45. Nb3 {[%emt 0:00:25]} Nxg3 {[%emt 0:00:37]} 46. Nxd4 {[%emt 0:00:37]} Ne4 {[%emt 0:00:40]} 47. b5 {[%emt 0:00:37]} Kc5 {[%emt 0:00:27]} 48. Nc6 {[%emt 0:00:43]} Kxb5 {[%emt 0:00:30]} 49. Nd8 {[%emt 0:00:24]} Nd6 {[%emt 0:00:25]} 50. Kd4 {[%emt 0:00:31]} Nf5+ {[%emt 0:00:25]} 51. Kxd5 {[%emt 0:00:28]} Nxh4 {[%emt 0:00:22]} 52. Nxf7 {[%emt 0:00:24]} Nf5 {[%emt 0:00:41]} 53. Ke5 {[%emt 0:00:40]} h4 {[%emt 0:00:38]} 54. Ng5 {[%emt 0:00:22]} Ng3 {[%emt 0:00:38]} 55. Kf6 {[%emt 0:00:32]} Ne2 {[%emt 0:00:24]} 56. Nh3 {[%emt 0:00:31]} Kc5 {[%emt 0:00:50]} 57. Kxg6 {[%emt 0:00:27]} Nxf4+ {[%emt 0:00:41]} 58. Nxf4 {[%emt 0:00:22]} h3 {[%emt 0:00:24]} 59. Nxh3 {[%emt 0:00:22]} 1/2-1/2

[Event "Balkan Youth Online-ch 2020"]
[Site "Online"]
[Date "2020.10.31"]
[Round "1.55"]
[White "Timagina, Sofia"]
[Black "Yurt, Nehir"]
[Result "1/2-1/2"]
[ECO "C55"]
[WhiteElo "1127"]
[BlackElo "1230"]
[Annotator "NA RC"]
[PlyCount "127"]
[EventDate "2020.10.31"]
[EventType "swiss"]
[SourceTitle "playchess.com"]
[Source "ChessBase"]
[SourceQuality "1"]
[TimeControl "5400+30"]

1. e4 {[%emt 1:05:20]} e5 {[%emt 1:05:24]} 2. Nf3 {[%emt 0:00:24]} Nc6 {[%emt 0:00:22]} 3. Bc4 {[%emt 0:00:24]} Nf6 {[%emt 0:00:22]} 4. d3 {[%emt 0:00:24]} Be7 {[%emt 0:00:25]} 5. Nc3 {[%emt 0:00:27]} O-O {[%emt 0:00:32]} 6. O-O {[%emt 0:00:31]} d6 {[%emt 0:00:22]} 7. h3 {[%emt 0:00:26]} Be6 {[%emt 0:00:40]} 8. Nd5 {[%emt 0:02:22]} Bxd5 {[%emt 0:01:33]} 9. Bxd5 {[%emt 0:01:20]} Nxd5 {[%emt 0:00:36]} 10. exd5 {[%emt 0:00:24]} Nb8 {[%emt 0:01:03]} 11. Be3 {[%emt 0:01:05]} c6 {[%emt 0:00:38]} 12. c4 {[%emt 0:08:26]} cxd5 {[%emt 0:00:47]} 13. cxd5 {[%emt 0:00:26]} Nd7 {[%emt 0:00:35]} 14. Rc1 {[%emt 0:03:15]} Rc8 {[%emt 0:01:30]} 15. Qd2 {[%emt 0:00:52]} Nf6 {[%emt 0:03:39]} 16. Rxc8 {[%emt 0:02:36]} Qxc8 {[%emt 0:00:48]} 17. Qa5 {[%emt 0:02:09]} a6 {[%emt 0:00:59]} 18. Rc1 {[%emt 0:01:05]} Qf5 {[%emt 0:02:06]} 19. Qc7 {[%emt 0:04:47]} Nxd5 {[%emt 0:05:06]} 20. Qxb7 {[%emt 0:02:15]} h6 {[%emt 0:04:17]} 21. Qxd5 {[%emt 0:00:50]} Qe6 {[%emt 0:00:34]} 22. Qxe6 {[%emt 0:00:25]} fxe6 {[%emt 0:00:22]} 23. Rc7 {[%emt 0:00:24]} Re8 {[%emt 0:01:10]} 24. a3 {[%emt 0:00:27]} Kf8 {[%emt 0:00:50]} 25. Ra7 {[%emt 0:00:25]} Rb8 {[%emt 0:00:27]} 26. b4 {[%emt 0:00:25]} Bf6 {[%emt 0:00:33]} 27. Rxa6 {[%emt 0:00:27]} Rd8 {[%emt 0:00:30]} 28. b5 {[%emt 0:00:25]} Be7 {[%emt 0:00:32]} 29. b6 {[%emt 0:00:26]} Rb8 {[%emt 0:00:24]} 30. Ra7 {[%emt 0:00:25]} Ke8 {[%emt 0:00:43]} 31. b7 {[%emt 0:00:25]} Kd7 {[%emt 0:00:38]} 32. a4 {[%emt 0:00:57]} Kc7 {[%emt 0:00:38]} 33. d4 {[%emt 0:00:33]} e4 {[%emt 0:00:35]} 34. Nd2 {[%emt 0:00:24]} d5 {[%emt 0:00:54]} 35. a5 {[%emt 0:00:33]} Rxb7 {[%emt 0:00:32]} 36. Bf4+ {[%emt 0:00:44]} Kc6 {[%emt 0:00:46]} 37. Rxb7 {[%emt 0:00:28]} Kxb7 {[%emt 0:00:29]} 38. Nb3 {[%emt 0:00:34]} Bb4 {[%emt 0:00:52]} 39. Kf1 {[%emt 0:00:31]} Bc3 {[%emt 0:00:37]} 40. Ke2 {[%emt 0:00:29]} Ka6 {[%emt 0:00:31]} 41. Nc5+ {[%emt 0:00:27]} Kxa5 {[%emt 0:00:35]} 42. Nxe6 {[%emt 0:00:26]} g5 {[%emt 0:00:24]} 43. Bg3 {[%emt 0:00:32]} Kb4 {[%emt 0:00:36]} 44. f3 {[%emt 0:00:34]} Kc4 {[%emt 0:00:45]} 45. Be5 {[%emt 0:00:29]} exf3+ {[%emt 0:00:54]} 46. Kxf3 {[%emt 0:00:24]} Kd3 {[%emt 0:00:31]} 47. Kg4 {[%emt 0:00:32]} Ke2 {[%emt 0:00:44]} 48. h4 {[%emt 0:00:37]} gxh4 {[%emt 0:00:50]} 49. Kxh4 {[%emt 0:00:26]} Kf2 {[%emt 0:00:23]} 50. g3 {[%emt 0:00:25]} Be1 {[%emt 0:00:39]} 51. Nc7 {[%emt 0:00:37]} Kf3 {[%emt 0:00:45]} 52. Nxd5 {[%emt 0:00:26]} Ke4 {[%emt 0:00:23]} 53. Nf6+ {[%emt 0:00:28]} Kf5 {[%emt 0:00:25]} 54. Kh5 {[%emt 0:00:33]} Ke6 {[%emt 0:00:32]} 55. Kxh6 {[%emt 0:00:24]} Bd2+ {[%emt 0:00:37]} 56. Kg6 {[%emt 0:00:29]} Be3 {[%emt 0:00:37]} 57. g4 {[%emt 0:00:29]} Ke7 {[%emt 0:00:26]} 58. d5 {[%emt 0:00:29]} Bc5 {[%emt 0:00:45]} 59. g5 {[%emt 0:00:26]} Bb4 {[%emt 0:00:36]} 60. Ng8+ {[%emt 0:01:09]} Kd7 {[%emt 0:00:37]} 61. Kf7 {[%emt 0:00:24]} Bc5 {[%emt 0:01:41]} 62. g6 {[%emt 0:00:24]} Bb4 {[%emt 0:00:39]} 63. g7 {[%emt 0:00:24]} Bf8 {[%emt 0:00:26]} 64. gxf8=Q {[%emt 0:00:30]} 1/2-1/2

[Event "Balkan Youth Online-ch 2020"]
[Site "Online"]
[Date "2020.10.31"]
[Round "1.57"]
[White "Kontogianni, Vasiliki"]
[Black "Caku, Kler"]
[Result "1/2-1/2"]
[ECO "D30"]
[WhiteElo "1144"]
[BlackElo "1199"]
[Annotator "NA RC"]
[PlyCount "77"]
[EventDate "2020.10.31"]
[EventType "swiss"]
[SourceTitle "playchess.com"]
[Source "ChessBase"]
[SourceQuality "1"]
[TimeControl "5400+30"]

1. d4 {[%emt 1:05:20]} d5 {[%emt 1:05:24]} 2. c4 {[%emt 0:00:25]} c6 {[%emt 0:00:24]} 3. Nf3 {[%emt 0:00:24]} Nf6 {[%emt 0:00:24]} 4. Qc2 {[%emt 0:00:24]} e6 {[%emt 0:00:38]} 5. Bf4 {[%emt 0:00:30]} Bd6 {[%emt 0:00:39]} 6. Bxd6 {[%emt 0:00:39]} Qxd6 {[%emt 0:00:23]} 7. e3 {[%emt 0:00:24]} O-O {[%emt 0:00:38]} 8. Bd3 {[%emt 0:00:28]} h6 {[%emt 0:00:36]} 9. O-O {[%emt 0:00:25]} Nbd7 {[%emt 0:00:49]} 10. c5 {[%emt 0:00:46]} Qc7 {[%emt 0:00:30]} 11. Nc3 {[%emt 0:00:27]} e5 {[%emt 0:00:32]} 12. dxe5 {[%emt 0:01:23]} Nxe5 {[%emt 0:00:24]} 13. Nxe5 {[%emt 0:00:26]} Qxe5 {[%emt 0:00:22]} 14. h3 {[%emt 0:00:33]} Qg5 {[%emt 0:01:39]} 15. Kh1 {[%emt 0:00:53]} Qe5 {[%emt 0:01:25]} 16. Ne2 {[%emt 0:00:59]} Bd7 {[%emt 0:01:56]} 17. Nd4 {[%emt 0:00:34]} Rfe8 {[%emt 0:01:09]} 18. Bf5 {[%emt 0:00:54]} Bxf5 {[%emt 0:00:51]} 19. Qxf5 {[%emt 0:00:25]} Qxf5 {[%emt 0:01:12]} 20. Nxf5 {[%emt 0:00:24]} Ne4 {[%emt 0:00:31]} 21. b4 {[%emt 0:00:29]} Re5 {[%emt 0:00:49]} 22. Nd4 {[%emt 0:00:32]} a5 {[%emt 0:01:17]} 23. a3 {[%emt 0:00:34]} Rg5 {[%emt 0:01:52]} 24. g4 {[%emt 0:00:50]} h5 {[%emt 0:01:20]} 25. Nf3 {[%emt 0:02:26]} Rg6 {[%emt 0:00:55]} 26. Nh4 {[%emt 0:00:59]} Rf6 {[%emt 0:00:37]} 27. gxh5 {[%emt 0:00:57]} Nxf2+ {[%emt 0:00:53]} 28. Kg2 {[%emt 0:00:31]} Ne4 {[%emt 0:00:29]} 29. Rxf6 {[%emt 0:00:44]} Nxf6 {[%emt 0:00:22]} 30. Rf1 {[%emt 0:00:41]} Nxh5 {[%emt 0:00:41]} 31. Nf5 {[%emt 0:00:37]} axb4 {[%emt 0:00:44]} 32. axb4 {[%emt 0:00:24]} Ra2+ {[%emt 0:00:32]} 33. Kg1 {[%emt 0:00:40]} Rb2 {[%emt 0:00:29]} 34. Nd6 {[%emt 0:00:54]} Nf6 {[%emt 0:01:23]} 35. Rf4 {[%emt 0:00:52]} Re2 {[%emt 0:01:31]} 36. Rf3 {[%emt 0:00:53]} Rb2 {[%emt 0:01:22]} 37. Rf4 {[%emt 0:00:26]} Re2 {[%emt 0:00:58]} 38. Rf3 {[%emt 0:00:27]} Rb2 {[%emt 0:00:31]} 39. Rf4 {[%emt 0:00:23]} 1/2-1/2